[Event "Titled Tuesday Blitz August 1 Early 2023"]
[White "Suyarov, Mukhammadzokhid"]
[Black "Vlassov, Nikolai"]
[WhiteFideId "14210495"]
[BlackFideId "4103360"]
[WhiteElo "2727"]
[BlackElo "2540"]
[Result "1/2-1/2"]
[Round "4"]
[TimeControl "180+1"]
[Date "2023.08.01"]
[WhiteClock "0:00:18"]
[BlackClock "0:00:16"]
[Board "71"]

1. d4 {[%clk 0:03:00]}  Nf6 {[%clk 0:02:59]} 2. Nc3 {[%clk 0:02:59]}  d5 {[%clk 0:02:59]} 3. Bf4 {[%clk 0:02:59]}  e6 {[%clk 0:02:58]} 4. Nb5 {[%clk 0:02:59]}  Na6 {[%clk 0:02:58]} 5. e3 {[%clk 0:03:00]}  c6 {[%clk 0:02:58]} 6. Nc3 {[%clk 0:03:00]}  Bb4 {[%clk 0:02:58]} 7. Bxa6 {[%clk 0:02:59]}  bxa6 {[%clk 0:02:58]} 8. Nf3 {[%clk 0:03:00]}  Ne4 {[%clk 0:02:45]} 9. O-O {[%clk 0:03:00]}  Bxc3 {[%clk 0:02:31]} 10. bxc3 {[%clk 0:03:01]}  O-O {[%clk 0:02:17]} 11. Ne5 {[%clk 0:02:58]}  c5 {[%clk 0:02:11]} 12. Qg4 {[%clk 0:02:50]}  f6 {[%clk 0:02:02]} 13. Bh6 {[%clk 0:02:42]}  Qc7 {[%clk 0:01:59]} 14. f3 {[%clk 0:02:34]}  Nxc3 {[%clk 0:01:54]} 15. f4 {[%clk 0:02:19]}  fxe5 {[%clk 0:01:48]} 16. fxe5 {[%clk 0:02:20]}  Bb7 {[%clk 0:01:44]} 17. Qxe6+ {[%clk 0:02:17]}  Kh8 {[%clk 0:01:44]} 18. Bg5 {[%clk 0:02:17]}  cxd4 {[%clk 0:01:40]} 19. exd4 {[%clk 0:02:12]}  Ne2+ {[%clk 0:01:39]} 20. Kh1 {[%clk 0:02:08]}  Nxd4 {[%clk 0:01:39]} 21. Qd6 {[%clk 0:02:04]}  Qxd6 {[%clk 0:01:33]} 22. exd6 {[%clk 0:02:05]}  Bc6 {[%clk 0:01:31]} 23. c3 {[%clk 0:01:55]}  Nb5 {[%clk 0:01:27]} 24. Be7 {[%clk 0:01:53]}  Rxf1+ {[%clk 0:01:25]} 25. Rxf1 {[%clk 0:01:54]}  Bd7 {[%clk 0:01:20]} 26. Rf3 {[%clk 0:01:52]}  Rc8 {[%clk 0:01:19]} 27. h4 {[%clk 0:01:51]}  Nxc3 {[%clk 0:01:16]} 28. h5 {[%clk 0:01:51]}  h6 {[%clk 0:01:15]} 29. Rf7 {[%clk 0:01:45]}  Be6 {[%clk 0:01:11]} 30. Rf3 {[%clk 0:01:42]}  d4 {[%clk 0:01:11]} 31. Rd3 {[%clk 0:01:41]}  Ne2 {[%clk 0:01:09]} 32. Kh2 {[%clk 0:01:36]}  Rc4 {[%clk 0:01:04]} 33. Bh4 {[%clk 0:01:04]}  Kg8 {[%clk 0:01:02]} 34. Rd2 {[%clk 0:01:00]}  Nf4 {[%clk 0:01:01]} 35. Bg3 {[%clk 0:00:58]}  Nxh5 {[%clk 0:01:00]} 36. Be5 {[%clk 0:00:57]}  Kf7 {[%clk 0:00:57]} 37. Bxd4 {[%clk 0:00:55]}  Nf6 {[%clk 0:00:57]} 38. Bxf6 {[%clk 0:00:53]}  Kxf6 {[%clk 0:00:57]} 39. d7 {[%clk 0:00:53]}  Bxd7 {[%clk 0:00:55]} 40. Rxd7 {[%clk 0:00:54]}  Ra4 {[%clk 0:00:55]} 41. Rd2 {[%clk 0:00:53]}  Ra3 {[%clk 0:00:55]} 42. g3 {[%clk 0:00:50]}  a5 {[%clk 0:00:55]} 43. Kg2 {[%clk 0:00:50]}  a4 {[%clk 0:00:55]} 44. Rb2 {[%clk 0:00:49]}  Rc3 {[%clk 0:00:55]} 45. Rd2 {[%clk 0:00:47]}  a3 {[%clk 0:00:54]} 46. Kh3 {[%clk 0:00:46]}  a5 {[%clk 0:00:43]} 47. Kg4 {[%clk 0:00:43]}  a4 {[%clk 0:00:41]} 48. Kf4 {[%clk 0:00:42]}  Rb3 {[%clk 0:00:31]} 49. Rd6+ {[%clk 0:00:39]}  Kf7 {[%clk 0:00:31]} 50. Rd4 {[%clk 0:00:36]}  Rb2 {[%clk 0:00:30]} 51. Rxa4 {[%clk 0:00:36]}  Rxa2 {[%clk 0:00:30]} 52. Ra7+ {[%clk 0:00:35]}  Kg6 {[%clk 0:00:30]} 53. Ra6+ {[%clk 0:00:33]}  Kh7 {[%clk 0:00:30]} 54. g4 {[%clk 0:00:32]}  Ra1 {[%clk 0:00:30]} 55. Kg3 {[%clk 0:00:31]}  a2 {[%clk 0:00:28]} 56. Kg2 {[%clk 0:00:31]}  Kg8 {[%clk 0:00:27]} 57. Ra7 {[%clk 0:00:32]}  Kf8 {[%clk 0:00:26]} 58. Kh2 {[%clk 0:00:32]}  Ke8 {[%clk 0:00:26]} 59. Kg2 {[%clk 0:00:31]}  Kd8 {[%clk 0:00:26]} 60. Kh2 {[%clk 0:00:30]}  Kc8 {[%clk 0:00:27]} 61. Kg2 {[%clk 0:00:30]}  Kb8 {[%clk 0:00:27]} 62. Ra3 {[%clk 0:00:30]}  Kc7 {[%clk 0:00:27]} 63. Kh2 {[%clk 0:00:30]}  Kd6 {[%clk 0:00:28]} 64. Ra8 {[%clk 0:00:30]}  Ke5 {[%clk 0:00:27]} 65. Ra4 {[%clk 0:00:26]}  Kf6 {[%clk 0:00:24]} 66. Ra7 {[%clk 0:00:23]}  g6 {[%clk 0:00:23]} 67. Ra5 {[%clk 0:00:23]}  Ke6 {[%clk 0:00:19]} 68. Kg2 {[%clk 0:00:23]}  Kd6 {[%clk 0:00:19]} 69. Kh2 {[%clk 0:00:22]}  Kc6 {[%clk 0:00:19]} 70. Kg2 {[%clk 0:00:23]}  Kb6 {[%clk 0:00:20]} 71. Ra8 {[%clk 0:00:23]}  Kc5 {[%clk 0:00:20]} 72. Ra6 {[%clk 0:00:21]}  Kd4 {[%clk 0:00:20]} 73. Ra8 {[%clk 0:00:20]}  Ke3 {[%clk 0:00:20]} 74. Ra4 {[%clk 0:00:19]}  Re1 {[%clk 0:00:14]} 75. Ra3+ {[%clk 0:00:19]}  Kf4 {[%clk 0:00:14]} 76. Ra4+ {[%clk 0:00:18]}  Kg5 {[%clk 0:00:14]} 77. Rxa2 {[%clk 0:00:19]}  Kxg4 {[%clk 0:00:14]} 78. Ra6 {[%clk 0:00:19]}  Kh5 {[%clk 0:00:14]} 79. Ra5+ {[%clk 0:00:20]}  g5 {[%clk 0:00:15]} 80. Ra6 {[%clk 0:00:21]}  Re3 {[%clk 0:00:15]} 81. Kf2 {[%clk 0:00:21]}  Rb3 {[%clk 0:00:15]} 82. Kg2 {[%clk 0:00:21]}  Kh4 {[%clk 0:00:15]} 83. Rxh6+ {[%clk 0:00:21]}  Kg4 {[%clk 0:00:15]} 84. Ra6 {[%clk 0:00:21]}  Rb2+ {[%clk 0:00:15]} 85. Kg1 {[%clk 0:00:22]}  Kh3 {[%clk 0:00:16]} 86. Ra3+ {[%clk 0:00:22]}  Kh4 {[%clk 0:00:16]} 87. Rc3 {[%clk 0:00:21]}  g4 {[%clk 0:00:16]} 88. Rd3 {[%clk 0:00:22]}  Kg5 {[%clk 0:00:15]} 89. Ra3 {[%clk 0:00:22]}  Kf4 {[%clk 0:00:16]} 90. Ra4+ {[%clk 0:00:22]}  Kf5 {[%clk 0:00:16]} 91. Ra3 {[%clk 0:00:23]}  Re2 {[%clk 0:00:15]} 92. Kf1 {[%clk 0:00:23]}  Re4 {[%clk 0:00:14]} 93. Kg2 {[%clk 0:00:22]}  Kf4 {[%clk 0:00:14]} 94. Ra2 {[%clk 0:00:22]}  Rb4 {[%clk 0:00:14]} 95. Rf2+ {[%clk 0:00:22]}  Kg5 {[%clk 0:00:15]} 96. Ra2 {[%clk 0:00:23]}  Kh4 {[%clk 0:00:15]} 97. Rc2 {[%clk 0:00:22]}  Ra4 {[%clk 0:00:15]} 98. Rd2 {[%clk 0:00:23]}  Ra3 {[%clk 0:00:15]} 99. Rb2 {[%clk 0:00:23]}  Rh3 {[%clk 0:00:15]} 100. Rb8 {[%clk 0:00:21]}  Rg3+ {[%clk 0:00:15]} 101. Kh2 {[%clk 0:00:21]}  Rd3 {[%clk 0:00:14]} 102. Rh8+ {[%clk 0:00:22]}  Kg5 {[%clk 0:00:14]} 103. Rg8+ {[%clk 0:00:23]}  Kf4 {[%clk 0:00:15]} 104. Rf8+ {[%clk 0:00:23]}  Ke4 {[%clk 0:00:14]} 105. Kg2 {[%clk 0:00:23]}  Rf3 {[%clk 0:00:13]} 106. Rg8 {[%clk 0:00:23]}  Kf4 {[%clk 0:00:12]} 107. Rf8+ {[%clk 0:00:22]}  Kg5 {[%clk 0:00:13]} 108. Rg8+ {[%clk 0:00:22]}  Kf5 {[%clk 0:00:12]} 109. Rf8+ {[%clk 0:00:21]}  Kg5 {[%clk 0:00:13]} 110. Rg8+ {[%clk 0:00:21]}  Kf5 {[%clk 0:00:13]} 111. Ra8 {[%clk 0:00:21]}  Rc3 {[%clk 0:00:13]} 112. Ra5+ {[%clk 0:00:21]}  Kf4 {[%clk 0:00:12]} 113. Ra4+ {[%clk 0:00:21]}  Kg5 {[%clk 0:00:13]} 114. Ra2 {[%clk 0:00:21]}  Kh4 {[%clk 0:00:13]} 115. Re2 {[%clk 0:00:20]}  Rg3+ {[%clk 0:00:13]} 116. Kh2 {[%clk 0:00:20]}  Ra3 {[%clk 0:00:13]} 117. Kg2 {[%clk 0:00:20]}  Rb3 {[%clk 0:00:13]} 118. Rd2 {[%clk 0:00:19]}  Rc3 {[%clk 0:00:13]} 119. Ra2 {[%clk 0:00:20]}  Rb3 {[%clk 0:00:13]} 120. Re2 {[%clk 0:00:19]}  Rc3 {[%clk 0:00:14]} 121. Ra2 {[%clk 0:00:20]}  Rb3 {[%clk 0:00:14]} 122. Rc2 {[%clk 0:00:20]}  Ra3 {[%clk 0:00:14]} 123. Re2 {[%clk 0:00:20]}  Rb3 {[%clk 0:00:14]} 124. Rd2 {[%clk 0:00:21]}  Ra3 {[%clk 0:00:15]} 125. Rc2 {[%clk 0:00:20]}  Kg5 {[%clk 0:00:15]} 126. Rc5+ {[%clk 0:00:20]}  Kf4 {[%clk 0:00:15]} 127. Rc2 {[%clk 0:00:21]}  Re3 {[%clk 0:00:14]} 128. Rc4+ {[%clk 0:00:20]}  Re4 {[%clk 0:00:14]} 129. Rc8 {[%clk 0:00:19]}  Re2+ {[%clk 0:00:14]} 130. Kf1 {[%clk 0:00:20]}  Re3 {[%clk 0:00:14]} 131. Kf2 {[%clk 0:00:19]}  g3+ {[%clk 0:00:14]} 132. Kf1 {[%clk 0:00:16]}  Re5 {[%clk 0:00:14]} 133. Rf8+ {[%clk 0:00:17]}  Rf5 {[%clk 0:00:14]} 134. Rxf5+ {[%clk 0:00:17]}  Kxf5 {[%clk 0:00:14]} 135. Kg2 {[%clk 0:00:17]}  Kg4 {[%clk 0:00:14]} 136. Kg1 {[%clk 0:00:17]}  Kf3 {[%clk 0:00:15]} 137. Kf1 {[%clk 0:00:17]}  g2+ {[%clk 0:00:15]} 138. Kg1 {[%clk 0:00:18]}  Kg3 {[%clk 0:00:16]} 1/2-1/2


[Site "https://www.chess.com"]

[Event "Titled Tuesday Blitz August 1 Early 2023"]
[White "Dimitrov, Atanas"]
[Black "Mekhane, Adam"]
[WhiteFideId "2901315"]
[BlackFideId "36050601"]
[WhiteElo "2719"]
[BlackElo "2537"]
[Result "1-0"]
[Round "4"]
[TimeControl "180+1"]
[Date "2023.08.01"]
[WhiteClock "0:00:10"]
[BlackClock "0:00:00"]
[Board "73"]

1. Nf3 {[%clk 0:03:00]}  Nf6 {[%clk 0:02:59]} 2. c4 {[%clk 0:03:00]}  g6 {[%clk 0:02:59]} 3. g3 {[%clk 0:03:00]}  Bg7 {[%clk 0:02:59]} 4. Bg2 {[%clk 0:03:00]}  O-O {[%clk 0:02:59]} 5. O-O {[%clk 0:03:01]}  c6 {[%clk 0:02:57]} 6. Nc3 {[%clk 0:03:01]}  d5 {[%clk 0:02:57]} 7. cxd5 {[%clk 0:02:54]}  cxd5 {[%clk 0:02:57]} 8. b3 {[%clk 0:02:54]}  Nc6 {[%clk 0:02:51]} 9. d4 {[%clk 0:02:52]}  Ne4 {[%clk 0:02:44]} 10. Bb2 {[%clk 0:02:51]}  Bf5 {[%clk 0:02:33]} 11. Rc1 {[%clk 0:02:47]}  Nxc3 {[%clk 0:02:32]} 12. Bxc3 {[%clk 0:02:44]}  Be4 {[%clk 0:02:32]} 13. Qd2 {[%clk 0:02:41]}  Qd7 {[%clk 0:02:19]} 14. Qb2 {[%clk 0:02:31]}  Rfc8 {[%clk 0:02:14]} 15. e3 {[%clk 0:02:25]}  Bxf3 {[%clk 0:01:47]} 16. Bxf3 {[%clk 0:02:23]}  e6 {[%clk 0:01:48]} 17. Be2 {[%clk 0:02:13]}  Ne7 {[%clk 0:01:43]} 18. Bb4 {[%clk 0:02:09]}  Nf5 {[%clk 0:01:41]} 19. a4 {[%clk 0:02:06]}  Bf8 {[%clk 0:01:40]} 20. Bb5 {[%clk 0:02:03]}  Qd8 {[%clk 0:01:37]} 21. Bd2 {[%clk 0:02:01]}  h5 {[%clk 0:01:32]} 22. Bd3 {[%clk 0:01:55]}  Nd6 {[%clk 0:01:28]} 23. Rxc8 {[%clk 0:01:50]}  Rxc8 {[%clk 0:01:28]} 24. Rc1 {[%clk 0:01:51]}  h4 {[%clk 0:01:24]} 25. Kg2 {[%clk 0:01:46]}  Be7 {[%clk 0:01:07]} 26. Rc2 {[%clk 0:01:40]}  Kg7 {[%clk 0:01:03]} 27. f3 {[%clk 0:01:36]}  hxg3 {[%clk 0:00:43]} 28. hxg3 {[%clk 0:01:35]}  Rxc2 {[%clk 0:00:42]} 29. Qxc2 {[%clk 0:01:35]}  Qc8 {[%clk 0:00:42]} 30. Qb2 {[%clk 0:01:30]}  a6 {[%clk 0:00:39]} 31. e4 {[%clk 0:01:16]}  Qc6 {[%clk 0:00:30]} 32. Bb4 {[%clk 0:00:51]}  Nf5 {[%clk 0:00:21]} 33. Bd2 {[%clk 0:00:43]}  Nd6 {[%clk 0:00:20]} 34. e5 {[%clk 0:00:37]}  Nf5 {[%clk 0:00:20]} 35. b4 {[%clk 0:00:31]}  b5 {[%clk 0:00:17]} 36. axb5 {[%clk 0:00:29]}  axb5 {[%clk 0:00:17]} 37. g4 {[%clk 0:00:27]}  Nh6 {[%clk 0:00:17]} 38. Qa2 {[%clk 0:00:24]}  Ng8 {[%clk 0:00:11]} 39. Qa5 {[%clk 0:00:22]}  Bf8 {[%clk 0:00:07]} 40. Qxb5 {[%clk 0:00:19]}  Qa8 {[%clk 0:00:07]} 41. Qa6 {[%clk 0:00:18]}  Qb8 {[%clk 0:00:06]} 42. b5 {[%clk 0:00:18]}  Ne7 {[%clk 0:00:07]} 43. b6 {[%clk 0:00:18]}  Nc6 {[%clk 0:00:06]} 44. b7 {[%clk 0:00:14]}  Nxd4 {[%clk 0:00:04]} 45. Qa8 {[%clk 0:00:12]}  Qxe5 {[%clk 0:00:00]} 46. b8=Q {[%clk 0:00:10]} 1-0


[Site "https://www.chess.com"]

[Event "Titled Tuesday Blitz August 1 Early 2023"]
[White "Zhao, Jun"]
[Black "Wartiovaara, Oliver"]
[WhiteFideId "8602522"]
[BlackFideId "513024"]
[WhiteElo "2717"]
[BlackElo "2535"]
[Result "1-0"]
[Round "4"]
[TimeControl "180+1"]
[Date "2023.08.01"]
[WhiteClock "0:01:06"]
[BlackClock "0:00:08"]
[Board "75"]

1. e4 {[%clk 0:03:00]}  Nc6 {[%clk 0:02:57]} 2. Nf3 {[%clk 0:03:00]}  d5 {[%clk 0:02:55]} 3. exd5 {[%clk 0:02:56]}  Qxd5 {[%clk 0:02:56]} 4. Nc3 {[%clk 0:02:54]}  Qh5 {[%clk 0:02:56]} 5. Be2 {[%clk 0:02:53]}  Bg4 {[%clk 0:02:53]} 6. O-O {[%clk 0:02:45]}  O-O-O {[%clk 0:02:52]} 7. h3 {[%clk 0:02:45]}  Bxf3 {[%clk 0:02:50]} 8. Bxf3 {[%clk 0:02:45]}  Qg6 {[%clk 0:02:51]} 9. b4 {[%clk 0:02:39]}  Nd4 {[%clk 0:02:30]} 10. Be4 {[%clk 0:02:37]}  f5 {[%clk 0:02:21]} 11. Bd3 {[%clk 0:02:30]}  e5 {[%clk 0:02:20]} 12. Ne2 {[%clk 0:02:18]}  Nf3+ {[%clk 0:02:15]} 13. Kh1 {[%clk 0:02:18]}  Nh4 {[%clk 0:02:15]} 14. Rg1 {[%clk 0:02:05]}  Bxb4 {[%clk 0:02:10]} 15. Rb1 {[%clk 0:02:02]}  Bc5 {[%clk 0:02:10]} 16. Qe1 {[%clk 0:01:56]}  e4 {[%clk 0:01:56]} 17. Bc4 {[%clk 0:01:56]}  Ne7 {[%clk 0:01:37]} 18. d4 {[%clk 0:01:53]}  exd3 {[%clk 0:01:16]} 19. Nf4 {[%clk 0:01:49]}  d2 {[%clk 0:01:02]} 20. Bxd2 {[%clk 0:01:46]}  Qd6 {[%clk 0:01:01]} 21. Nd3 {[%clk 0:01:38]}  Bb6 {[%clk 0:00:58]} 22. Bf4 {[%clk 0:01:34]}  Qc6 {[%clk 0:00:48]} 23. Qxe7 {[%clk 0:01:22]}  Qxc4 {[%clk 0:00:15]} 24. Qxh4 {[%clk 0:01:22]}  Qc3 {[%clk 0:00:16]} 25. Be5 {[%clk 0:01:18]}  Qxc2 {[%clk 0:00:16]} 26. Rgc1 {[%clk 0:01:11]}  Qxd3 {[%clk 0:00:16]} 27. Rxb6 {[%clk 0:01:11]}  axb6 {[%clk 0:00:14]} 28. Rxc7+ {[%clk 0:01:10]}  Kb8 {[%clk 0:00:08]} 29. Rd7+ {[%clk 0:01:06]} 1-0


[Site "https://www.chess.com"]

[Event "Titled Tuesday Blitz August 1 Early 2023"]
[White "Papasimakopoulos, Alexandros"]
[Black "Palczert, Matyas"]
[WhiteFideId "4244125"]
[BlackFideId "784958"]
[WhiteElo "2716"]
[BlackElo "2535"]
[Result "1-0"]
[Round "4"]
[TimeControl "180+1"]
[Date "2023.08.01"]
[WhiteClock "0:00:44"]
[BlackClock "0:00:01"]
[Board "76"]

1. d4 {[%clk 0:02:58]}  Nf6 {[%clk 0:02:56]} 2. c4 {[%clk 0:02:58]}  e6 {[%clk 0:02:56]} 3. Nc3 {[%clk 0:02:58]}  c5 {[%clk 0:02:45]} 4. d5 {[%clk 0:02:58]}  exd5 {[%clk 0:02:45]} 5. cxd5 {[%clk 0:02:58]}  d6 {[%clk 0:02:45]} 6. Nf3 {[%clk 0:02:59]}  g6 {[%clk 0:02:45]} 7. Bf4 {[%clk 0:02:59]}  a6 {[%clk 0:02:42]} 8. a4 {[%clk 0:02:59]}  Bg7 {[%clk 0:02:42]} 9. h3 {[%clk 0:02:58]}  O-O {[%clk 0:02:42]} 10. e3 {[%clk 0:02:58]}  Re8 {[%clk 0:02:39]} 11. Nd2 {[%clk 0:02:58]}  Qe7 {[%clk 0:02:32]} 12. Be2 {[%clk 0:02:57]}  Rd8 {[%clk 0:02:11]} 13. Nc4 {[%clk 0:02:55]}  Bf5 {[%clk 0:01:50]} 14. g4 {[%clk 0:02:33]}  Bc8 {[%clk 0:01:49]} 15. f3 {[%clk 0:02:24]}  Qc7 {[%clk 0:01:42]} 16. a5 {[%clk 0:02:16]}  Ne8 {[%clk 0:01:39]} 17. O-O {[%clk 0:02:09]}  Nd7 {[%clk 0:01:37]} 18. e4 {[%clk 0:02:08]}  Ne5 {[%clk 0:01:34]} 19. Nxe5 {[%clk 0:02:03]}  dxe5 {[%clk 0:01:33]} 20. Be3 {[%clk 0:02:02]}  Nd6 {[%clk 0:01:32]} 21. Na4 {[%clk 0:01:53]}  Qxa5 {[%clk 0:01:18]} 22. Bxc5 {[%clk 0:01:52]}  Rd7 {[%clk 0:00:48]} 23. b4 {[%clk 0:01:50]}  Qd8 {[%clk 0:00:44]} 24. Nb6 {[%clk 0:01:51]}  Rb8 {[%clk 0:00:33]} 25. Nxd7 {[%clk 0:01:51]}  Qxd7 {[%clk 0:00:33]} 26. Rc1 {[%clk 0:01:49]}  b6 {[%clk 0:00:31]} 27. Be3 {[%clk 0:01:48]}  Bb7 {[%clk 0:00:29]} 28. Qc2 {[%clk 0:01:47]}  Rc8 {[%clk 0:00:22]} 29. Qa2 {[%clk 0:01:46]}  Rb8 {[%clk 0:00:20]} 30. Bxa6 {[%clk 0:01:42]}  Ra8 {[%clk 0:00:20]} 31. b5 {[%clk 0:01:42]}  Nxb5 {[%clk 0:00:19]} 32. Bxb5 {[%clk 0:01:42]}  Qxb5 {[%clk 0:00:19]} 33. Qb1 {[%clk 0:01:40]}  Qe2 {[%clk 0:00:18]} 34. Rce1 {[%clk 0:01:37]}  Qc4 {[%clk 0:00:11]} 35. Qxb6 {[%clk 0:01:35]}  Ba6 {[%clk 0:00:12]} 36. Ra1 {[%clk 0:01:33]}  Qe2 {[%clk 0:00:08]} 37. Rf2 {[%clk 0:01:33]}  Qd3 {[%clk 0:00:08]} 38. Rfa2 {[%clk 0:01:33]}  Bf8 {[%clk 0:00:05]} 39. Rxa6 {[%clk 0:01:32]}  Rb8 {[%clk 0:00:05]} 40. R6a3 {[%clk 0:00:49]}  Qxa3 {[%clk 0:00:05]} 41. Rxa3 {[%clk 0:00:48]}  Rxb6 {[%clk 0:00:06]} 42. Ra8 {[%clk 0:00:44]}  Rb5 {[%clk 0:00:01]} 43. Bh6 {[%clk 0:00:44]} 1-0


[Site "https://www.chess.com"]

[Event "Titled Tuesday Blitz August 1 Early 2023"]
[White "Ismagilov, Damir"]
[Black "Klukin, Kirill"]
[WhiteFideId "34199982"]
[BlackFideId "24199273"]
[WhiteElo "2534"]
[BlackElo "2714"]
[Result "1/2-1/2"]
[Round "4"]
[TimeControl "180+1"]
[Date "2023.08.01"]
[WhiteClock "0:00:08"]
[BlackClock "0:00:09"]
[Board "77"]

1. c4 {[%clk 0:03:00]}  c5 {[%clk 0:02:57]} 2. Nc3 {[%clk 0:03:00]}  g6 {[%clk 0:02:57]} 3. Nf3 {[%clk 0:02:54]}  Bg7 {[%clk 0:02:58]} 4. g3 {[%clk 0:02:50]}  Nc6 {[%clk 0:02:58]} 5. Bg2 {[%clk 0:02:50]}  a6 {[%clk 0:02:58]} 6. O-O {[%clk 0:02:49]}  Rb8 {[%clk 0:02:58]} 7. a4 {[%clk 0:02:32]}  Nf6 {[%clk 0:02:54]} 8. d4 {[%clk 0:02:26]}  cxd4 {[%clk 0:02:42]} 9. Nxd4 {[%clk 0:02:27]}  O-O {[%clk 0:02:42]} 10. Nb3 {[%clk 0:02:04]}  d6 {[%clk 0:02:32]} 11. Bf4 {[%clk 0:01:57]}  Be6 {[%clk 0:02:05]} 12. Nd5 {[%clk 0:01:52]}  Nh5 {[%clk 0:01:30]} 13. Bc1 {[%clk 0:01:50]}  Ne5 {[%clk 0:01:26]} 14. Nd2 {[%clk 0:01:44]}  Rc8 {[%clk 0:01:22]} 15. Qb3 {[%clk 0:01:25]}  Nd7 {[%clk 0:01:01]} 16. Rb1 {[%clk 0:01:17]}  Nc5 {[%clk 0:00:54]} 17. Qa3 {[%clk 0:01:11]}  b5 {[%clk 0:00:41]} 18. axb5 {[%clk 0:01:05]}  axb5 {[%clk 0:00:42]} 19. cxb5 {[%clk 0:01:02]}  Nf6 {[%clk 0:00:41]} 20. Nxf6+ {[%clk 0:00:59]}  Bxf6 {[%clk 0:00:42]} 21. b4 {[%clk 0:00:55]}  Nd7 {[%clk 0:00:33]} 22. Bb2 {[%clk 0:00:55]}  Bxb2 {[%clk 0:00:28]} 23. Qxb2 {[%clk 0:00:56]}  Qb6 {[%clk 0:00:27]} 24. Ne4 {[%clk 0:00:43]}  Qxb5 {[%clk 0:00:21]} 25. h4 {[%clk 0:00:39]}  Bf5 {[%clk 0:00:20]} 26. Rbc1 {[%clk 0:00:37]}  Ne5 {[%clk 0:00:12]} 27. Nc3 {[%clk 0:00:34]}  Qd7 {[%clk 0:00:07]} 28. Nd5 {[%clk 0:00:32]}  Rb8 {[%clk 0:00:07]} 29. Rc7 {[%clk 0:00:28]}  Qd8 {[%clk 0:00:05]} 30. Rxe7 {[%clk 0:00:27]}  Be6 {[%clk 0:00:03]} 31. Ra7 {[%clk 0:00:21]}  Bxd5 {[%clk 0:00:03]} 32. Bxd5 {[%clk 0:00:22]}  Qb6 {[%clk 0:00:04]} 33. Rfa1 {[%clk 0:00:19]}  Qxb4 {[%clk 0:00:04]} 34. Qxb4 {[%clk 0:00:18]}  Rxb4 {[%clk 0:00:05]} 35. f4 {[%clk 0:00:18]}  Ng4 {[%clk 0:00:05]} 36. Re7 {[%clk 0:00:16]}  Nf6 {[%clk 0:00:05]} 37. Bf3 {[%clk 0:00:13]}  Rbb8 {[%clk 0:00:03]} 38. Raa7 {[%clk 0:00:13]}  Rbe8 {[%clk 0:00:04]} 39. Rec7 {[%clk 0:00:13]}  h5 {[%clk 0:00:04]} 40. Kf2 {[%clk 0:00:12]}  Kg7 {[%clk 0:00:05]} 41. Ra6 {[%clk 0:00:12]}  Re6 {[%clk 0:00:04]} 42. Rcc6 {[%clk 0:00:11]}  Rd8 {[%clk 0:00:04]} 43. Ra7 {[%clk 0:00:11]}  Rde8 {[%clk 0:00:03]} 44. Rcc7 {[%clk 0:00:10]}  Rf8 {[%clk 0:00:04]} 45. Re7 {[%clk 0:00:09]}  Rxe7 {[%clk 0:00:04]} 46. Rxe7 {[%clk 0:00:10]}  Rd8 {[%clk 0:00:04]} 47. e4 {[%clk 0:00:10]}  Kf8 {[%clk 0:00:05]} 48. Ra7 {[%clk 0:00:10]}  Re8 {[%clk 0:00:05]} 49. Ke3 {[%clk 0:00:09]}  Nxe4 {[%clk 0:00:06]} 50. Bxe4 {[%clk 0:00:09]}  d5 {[%clk 0:00:07]} 51. Ra4 {[%clk 0:00:09]}  f5 {[%clk 0:00:07]} 52. Ra6 {[%clk 0:00:09]}  Rxe4+ {[%clk 0:00:07]} 53. Kf3 {[%clk 0:00:09]}  Kf7 {[%clk 0:00:08]} 54. Rd6 {[%clk 0:00:08]}  d4 {[%clk 0:00:08]} 55. Rd7+ {[%clk 0:00:07]}  Ke6 {[%clk 0:00:08]} 56. Rd8 {[%clk 0:00:08]}  Kf6 {[%clk 0:00:09]} 57. Rd6+ {[%clk 0:00:08]}  Kf7 {[%clk 0:00:09]} 58. Rd7+ {[%clk 0:00:07]}  Ke8 {[%clk 0:00:10]} 59. Rd6 {[%clk 0:00:08]}  Kf7 {[%clk 0:00:09]} 1/2-1/2


[Site "https://www.chess.com"]

[Event "Titled Tuesday Blitz August 1 Early 2023"]
[White "Kim, Yoon-Young"]
[Black "Sreyas Payyappat"]
[WhiteFideId "30908779"]
[BlackFideId "46674969"]
[WhiteElo "2705"]
[BlackElo "2528"]
[Result "1-0"]
[Round "4"]
[TimeControl "180+1"]
[Date "2023.08.01"]
[WhiteClock "0:00:17"]
[BlackClock "0:00:00"]
[Board "81"]

1. d4 {[%clk 0:02:57]}  Nf6 {[%clk 0:02:58]} 2. c4 {[%clk 0:02:58]}  c5 {[%clk 0:02:57]} 3. Nf3 {[%clk 0:02:48]}  e6 {[%clk 0:02:56]} 4. g3 {[%clk 0:02:47]}  cxd4 {[%clk 0:02:52]} 5. Nxd4 {[%clk 0:02:48]}  Nc6 {[%clk 0:02:51]} 6. Bg2 {[%clk 0:02:49]}  Qb6 {[%clk 0:02:45]} 7. Nb3 {[%clk 0:02:48]}  d5 {[%clk 0:02:22]} 8. cxd5 {[%clk 0:02:44]}  exd5 {[%clk 0:02:23]} 9. O-O {[%clk 0:02:42]}  Be6 {[%clk 0:02:20]} 10. Be3 {[%clk 0:02:34]}  Qc7 {[%clk 0:02:18]} 11. Nc3 {[%clk 0:02:32]}  Rd8 {[%clk 0:02:15]} 12. Bf4 {[%clk 0:02:19]}  Qb6 {[%clk 0:02:09]} 13. Rc1 {[%clk 0:02:08]}  d4 {[%clk 0:01:49]} 14. Na4 {[%clk 0:02:02]}  Bxb3 {[%clk 0:01:33]} 15. axb3 {[%clk 0:01:49]}  Qb5 {[%clk 0:01:30]} 16. Qc2 {[%clk 0:01:40]}  Nd5 {[%clk 0:01:22]} 17. Qc4 {[%clk 0:01:22]}  Qxc4 {[%clk 0:01:09]} 18. bxc4 {[%clk 0:01:17]}  Nxf4 {[%clk 0:01:07]} 19. gxf4 {[%clk 0:01:18]}  Bd6 {[%clk 0:01:06]} 20. f5 {[%clk 0:00:57]}  O-O {[%clk 0:01:03]} 21. Rcd1 {[%clk 0:00:56]}  Rfe8 {[%clk 0:01:00]} 22. Bf3 {[%clk 0:00:46]}  Na5 {[%clk 0:00:57]} 23. c5 {[%clk 0:00:43]}  Bc7 {[%clk 0:00:40]} 24. b4 {[%clk 0:00:43]}  Nc4 {[%clk 0:00:34]} 25. Bxb7 {[%clk 0:00:39]}  Re5 {[%clk 0:00:23]} 26. Ba6 {[%clk 0:00:35]}  Na3 {[%clk 0:00:19]} 27. Bd3 {[%clk 0:00:31]}  a5 {[%clk 0:00:15]} 28. b5 {[%clk 0:00:30]}  g6 {[%clk 0:00:05]} 29. Ra1 {[%clk 0:00:25]}  gxf5 {[%clk 0:00:05]} 30. Rxa3 {[%clk 0:00:24]}  f4 {[%clk 0:00:06]} 31. b6 {[%clk 0:00:23]}  Bb8 {[%clk 0:00:04]} 32. c6 {[%clk 0:00:23]}  Bd6 {[%clk 0:00:04]} 33. c7 {[%clk 0:00:22]}  Rde8 {[%clk 0:00:05]} 34. Rb3 {[%clk 0:00:20]}  Rg5+ {[%clk 0:00:05]} 35. Kh1 {[%clk 0:00:21]}  Kh8 {[%clk 0:00:03]} 36. Rg1 {[%clk 0:00:19]}  Rh5 {[%clk 0:00:03]} 37. Rg2 {[%clk 0:00:19]}  f3 {[%clk 0:00:00]} 38. Rg3 {[%clk 0:00:17]} 1-0


[Site "https://www.chess.com"]